[Event "Fagernes Open 2021"]
[Site "Fagernes"]
[Date "2021.10.17"]
[Round "9.15"]
[White "Lystad, Maximilian L"]
[Black "Stenseng, Benjamin"]
[Result "0-1"]
[ECO "A10"]
[WhiteElo "1767"]
[BlackElo "1590"]
[Annotator "NA"]
[PlyCount "92"]
[EventDate "2021.10.10"]
[EventCountry "NOR"]
[SourceTitle "playchess.com"]
[Source "ChessBase"]
[SourceQuality "1"]
[TimeControl "40/5400+30:1800+30"]

1. c4 {[%emt 0:00:00]} f5 {[%emt 0:00:00]} 2. g3 {[%emt 0:00:00]} Nf6 {[%emt 0:00:00]} 3. Bg2 {[%emt 0:00:00]} e6 {[%emt 0:00:00]} 4. Nf3 {[%emt 0:00:00]} Be7 {[%emt 0:00:00]} 5. O-O {[%emt 0:00:00]} O-O {[%emt 0:00:00]} 6. d3 {[%emt 0:00:00]} Nc6 {[%emt 0:00:00]} 7. Nc3 {[%emt 0:00:00]} b6 {[%emt 0:00:00]} 8. a3 {[%emt 0:00:00]} a5 {[%emt 0:00:00]} 9. b3 {[%emt 0:09:31]} Bb7 {[%emt 0:00:00]} 10. Bb2 {[%emt 0:00:12]} h6 {[%emt 0:05:18]} 11. Ne5 {[%emt 0:08:44]} Kh7 {[%emt 0:05:50]} 12. Rc1 {[%emt 0:11:47]} Rb8 {[%emt 0:02:03]} 13. d4 {[%emt 0:02:23]} Nxe5 {[%emt 0:10:07]} 14. dxe5 {[%emt 0:00:12]} Ng4 {[%emt 0:01:07]} 15. Nb5 {[%emt 0:02:57]} Bxg2 {[%emt 0:03:55]} 16. Kxg2 {[%emt 0:00:07]} h5 {[%emt 0:03:44]} 17. h3 {[%emt 0:00:48]} Nh6 {[%emt 0:00:06]} 18. Qd3 {[%emt 0:01:13]} Qc8 {[%emt 0:03:35]} 19. Rfd1 {[%emt 0:03:28]} Qb7+ {[%emt 0:02:29]} 20. Qf3 {[%emt 0:02:28]} c6 {[%emt 0:00:07]} 21. Nd6 {[%emt 0:00:16]} Bxd6 {[%emt 0:00:13]} 22. Rxd6 {[%emt 0:00:26]} h4 {[%emt 0:00:29]} 23. c5 {[%emt 0:04:50]} hxg3 {[%emt 0:01:02]} 24. fxg3 {[%emt 0:02:25]} bxc5 {[%emt 0:03:19]} 25. Rxc5 {[%emt 0:01:48]} Qxb3 {[%emt 0:01:16]} 26. Qxb3 {[%emt 0:00:15]} Rxb3 {[%emt 0:00:06]} 27. Bc1 {[%emt 0:00:05]} Rf7 {[%emt 0:02:29]} 28. Rxa5 {[%emt 0:03:05]} f4 {[%emt 0:01:57]} 29. Bxf4 {[%emt 0:00:57]} Nf5 {[%emt 0:00:58]} 30. Rd3 {[%emt 0:01:06]} Rb2 {[%emt 0:00:23]} 31. Ra7 {[%emt 0:02:11]} Rxe2+ {[%emt 0:01:21]} 32. Kf3 {[%emt 0:00:12]} Ra2 {[%emt 0:00:42]} 33. a4 {[%emt 0:12:38]} Ra1 {[%emt 0:22:33]} 34. a5 {[%emt 0:03:18]} Ra2 {[%emt 0:00:20]} 35. a6 {[%emt 0:00:54]} Ra1 {[%emt 0:00:16]} 36. Ra8 {[%emt 0:00:47]} Ra2 {[%emt 0:00:32]} 37. a7 {[%emt 0:00:26]} Ra1 {[%emt 0:00:29]} 38. Ke2 {[%emt 0:13:53]} Ra2+ {[%emt 0:02:34]} 39. Rd2 {[%emt 0:01:33]} Ra3 {[%emt 0:00:40]} 40. Kd1 {[%emt 0:02:37]} c5 {[%emt 0:11:07]} 41. Rb2 {[%emt 0:42:38]} Nd4 {[%emt 0:32:53]} 42. Be3 {[%emt 0:00:00]} Rd3+ {[%emt 0:00:00]} 43. Ke1 {[%emt 0:00:00]} Rxe3+ {[%emt 0:00:00]} 44. Kd2 {[%emt 0:00:00]} Ra3 {[%emt 0:00:00]} 45. Rbb8 {[%emt 0:00:00]} Rf2+ {[%emt 0:00:00]} 46. Ke1 {[%emt 0:00:00]} Re2+ {[%emt 0:00:00]} 0-1

[Event "Fagernes Open 2021"]
[Site "Fagernes"]
[Date "2021.10.17"]
[Round "9.16"]
[White "Cross, Jamie"]
[Black "Johnsen, Ole Jacob"]
[Result "1-0"]
[ECO "B01"]
[WhiteElo "1761"]
[BlackElo "1483"]
[Annotator "NA"]
[PlyCount "31"]
[EventDate "2021.10.10"]
[EventCountry "NOR"]
[SourceTitle "playchess.com"]
[Source "ChessBase"]
[SourceQuality "1"]
[TimeControl "40/5400+30:1800+30"]

1. e4 {[%emt 0:00:00]} d5 {[%emt 0:00:00]} 2. exd5 {[%emt 0:00:00]} Qxd5 {[%emt 0:00:00]} 3. Nf3 {[%emt 0:00:00]} Bf5 {[%emt 0:00:00]} 4. Nc3 {[%emt 0:00:00]} Qa5 {[%emt 0:00:00]} 5. Bc4 {[%emt 0:00:00]} c6 {[%emt 0:00:00]} 6. O-O {[%emt 0:00:00]} e6 {[%emt 0:00:00]} 7. Re1 {[%emt 0:00:00]} Nd7 {[%emt 0:00:00]} 8. d4 {[%emt 0:00:00]} O-O-O {[%emt 0:00:00]} 9. Bf4 {[%emt 0:00:21]} Bb4 {[%emt 0:00:00]} 10. Qe2 {[%emt 0:16:20]} Bg4 {[%emt 0:00:00]} 11. h3 {[%emt 0:09:06]} Bxf3 12. Qxf3 Ngf6 13. a3 Be7 14. b4 Qh5 15. Qxc6+ bxc6 16. Ba6# {[%emt 0:02:30]} 1-0

[Event "Fagernes Open 2021"]
[Site "Fagernes"]
[Date "2021.10.17"]
[Round "9.17"]
[White "Haugen, Lars Tormod"]
[Black "Lien, Sebastian"]
[Result "1-0"]
[ECO "A36"]
[WhiteElo "1756"]
[BlackElo "1316"]
[Annotator "NA"]
[PlyCount "59"]
[EventDate "2021.10.10"]
[EventCountry "NOR"]
[SourceTitle "playchess.com"]
[Source "ChessBase"]
[SourceQuality "1"]
[TimeControl "40/5400+30:1800+30"]

1. c4 {[%emt 0:00:00]} c5 {[%emt 0:15:42]} 2. Nc3 {[%emt 0:00:00]} Nc6 {[%emt 0:00:00]} 3. g3 {[%emt 0:00:00]} g6 {[%emt 0:00:00]} 4. Bg2 {[%emt 0:00:00]} Bg7 {[%emt 0:00:00]} 5. a3 {[%emt 0:00:00]} e5 {[%emt 0:00:00]} 6. d3 {[%emt 0:01:16]} a6 {[%emt 0:00:00]} 7. Nf3 {[%emt 0:03:00]} Nge7 {[%emt 0:00:38]} 8. O-O {[%emt 0:00:58]} O-O {[%emt 0:00:28]} 9. Ne1 {[%emt 0:00:34]} Rb8 {[%emt 0:01:25]} 10. Bg5 {[%emt 0:11:04]} h6 {[%emt 0:13:08]} 11. Bxe7 {[%emt 0:02:05]} Qxe7 {[%emt 0:00:12]} 12. Rb1 {[%emt 0:06:13]} b5 {[%emt 0:06:52]} 13. cxb5 {[%emt 0:02:26]} axb5 {[%emt 0:00:09]} 14. Nd5 {[%emt 0:00:44]} Qe8 {[%emt 0:01:30]} 15. b4 {[%emt 0:07:38]} cxb4 {[%emt 0:04:50]} 16. Nxb4 {[%emt 0:02:57]} Nxb4 {[%emt 0:02:09]} 17. Rxb4 {[%emt 0:00:20]} d6 {[%emt 0:02:06]} 18. Nc2 {[%emt 0:01:52]} Bb7 {[%emt 0:01:03]} 19. Ne3 {[%emt 0:00:58]} Bxg2 {[%emt 0:00:17]} 20. Kxg2 {[%emt 0:00:53]} Qc6+ {[%emt 0:02:04]} 21. Kg1 {[%emt 0:03:33]} Rfc8 {[%emt 0:02:24]} 22. Qb3 {[%emt 0:03:01]} Rb7 {[%emt 0:05:15]} 23. Rb1 {[%emt 0:07:35]} Rcb8 {[%emt 0:03:11]} 24. Nd5 {[%emt 0:05:11]} Bf8 {[%emt 0:04:40]} 25. e4 {[%emt 0:04:49]} Ra8 {[%emt 0:03:38]} 26. Qb2 {[%emt 0:11:24]} Rba7 {[%emt 0:03:07]} 27. Rc1 {[%emt 0:01:43]} Qa6 {[%emt 0:04:14]} 28. Nc7 {[%emt 0:02:37]} Rxc7 {[%emt 0:00:29]} 29. Rxc7 {[%emt 0:00:02]} Qxa3 {[%emt 0:00:07]} 30. Qb3 {[%emt 0:03:30]} 1-0

[Event "Fagernes Open 2021"]
[Site "Fagernes"]
[Date "2021.10.17"]
[Round "9.18"]
[White "Bø, Torgeir Haraldstad"]
[Black "Evenshaug, Amadeus Hestvik"]
[Result "1/2-1/2"]
[ECO "D02"]
[WhiteElo "1613"]
[BlackElo "1609"]
[Annotator "NA"]
[PlyCount "99"]
[EventDate "2021.10.10"]
[EventCountry "NOR"]
[SourceTitle "playchess.com"]
[Source "ChessBase"]
[SourceQuality "1"]
[TimeControl "40/5400+30:1800+30"]

1. d4 {[%emt 0:00:00]} Nf6 {[%emt 0:00:00]} 2. Nf3 {[%emt 0:00:00]} d5 {[%emt 0:00:00]} 3. c3 {[%emt 0:00:00]} Bf5 {[%emt 0:00:00]} 4. Qb3 {[%emt 0:00:00]} b6 {[%emt 0:00:00]} 5. c4 {[%emt 0:00:00]} e6 {[%emt 0:04:13]} 6. Nc3 {[%emt 0:00:00]} c6 {[%emt 0:01:42]} 7. Bf4 {[%emt 0:00:56]} Bd6 {[%emt 0:03:31]} 8. Bg3 {[%emt 0:04:56]} O-O {[%emt 0:01:03]} 9. e3 {[%emt 0:00:28]} Bxg3 {[%emt 0:00:59]} 10. hxg3 {[%emt 0:00:12]} Nbd7 {[%emt 0:02:19]} 11. Nh4 {[%emt 0:03:02]} Bg6 {[%emt 0:05:53]} 12. Nxg6 {[%emt 0:00:18]} hxg6 {[%emt 0:00:46]} 13. Be2 {[%emt 0:04:51]} Qe7 {[%emt 0:14:27]} 14. O-O-O {[%emt 0:07:36]} Rfc8 {[%emt 0:05:17]} 15. Rh2 {[%emt 0:08:32]} dxc4 {[%emt 0:00:53]} 16. Rdh1 {[%emt 0:02:36]} Kf8 {[%emt 0:00:17]} 17. Bxc4 {[%emt 0:00:41]} b5 {[%emt 0:05:21]} 18. Be2 {[%emt 0:07:57]} a5 {[%emt 0:08:26]} 19. Kb1 {[%emt 0:16:42]} a4 {[%emt 0:02:21]} 20. Qc2 {[%emt 0:02:23]} Qd6 {[%emt 0:07:14]} 21. Rh8+ {[%emt 0:03:02]} Ng8 {[%emt 0:02:19]} 22. g4 {[%emt 0:10:43]} a3 {[%emt 0:13:37]} 23. b3 {[%emt 0:02:38]} Qb4 {[%emt 0:00:38]} 24. Bf3 {[%emt 0:06:54]} Ndf6 {[%emt 0:04:53]} 25. Qd3 {[%emt 0:02:52]} Nd5 {[%emt 0:02:57]} 26. Ne4 {[%emt 0:01:22]} Ke7 {[%emt 0:02:54]} 27. g5 {[%emt 0:03:57]} f5 {[%emt 0:03:36]} 28. Nc5 {[%emt 0:00:21]} Nc3+ {[%emt 0:02:55]} 29. Ka1 {[%emt 0:03:25]} Na4 {[%emt 0:03:54]} 30. Qc2 {[%emt 0:06:04]} Qc3+ {[%emt 0:01:49]} 31. Qxc3 {[%emt 0:00:28]} Nxc3 {[%emt 0:00:06]} 32. Rc1 {[%emt 0:00:47]} Nd5 {[%emt 0:00:49]} 33. Bxd5 {[%emt 0:01:10]} exd5 {[%emt 0:01:05]} 34. b4 {[%emt 0:00:24]} Kd6 {[%emt 0:00:27]} 35. Nb7+ {[%emt 0:00:57]} Kc7 {[%emt 0:00:34]} 36. Na5 {[%emt 0:00:14]} Kd6 {[%emt 0:00:12]} 37. Rc3 {[%emt 0:01:04]} Ne7 {[%emt 0:00:15]} 38. Rxc8 {[%emt 0:00:32]} Rxc8 {[%emt 0:00:10]} 39. Rxa3 {[%emt 0:00:28]} Rc7 {[%emt 0:00:27]} 40. Rc3 {[%emt 0:00:49]} Nc8 {[%emt 0:00:23]} 41. Kb2 {[%emt 0:30:37]} Nb6 {[%emt 0:31:44]} 42. Rc1 {[%emt 0:00:55]} Nd7 {[%emt 0:00:00]} 43. g3 {[%emt 0:00:00]} Nb6 {[%emt 0:00:00]} 44. Kc3 {[%emt 0:00:00]} Nc8 {[%emt 0:00:00]} 45. Kd3 {[%emt 0:00:00]} Kd7 {[%emt 0:00:00]} 46. Rh1 {[%emt 0:00:00]} Nd6 {[%emt 0:00:00]} 47. f3 {[%emt 0:00:00]} Ke7 {[%emt 0:00:00]} 48. Rc1 {[%emt 0:00:00]} Kd7 {[%emt 0:00:00]} 49. Rh1 {[%emt 0:00:00]} Ke7 {[%emt 0:00:00]} 50. Rc1 {[%emt 0:00:00]} 1/2-1/2